fUSD/lending_fUSD_20240418
["ID","MTS","AMOUNT","RATE_DAILY","PERIOD"]
[322893987,1713484233513,-157.041908,0.00016638,2]
[322893988,1713484233522,-157.041908,0.00016638,2]
[322893989,1713484233531,-157.041908,0.00016638,2]
[322893990,1713484233542,-157.041908,0.00016638,2]
[322893991,1713484233552,-157.041908,0.00016638,2]
[322893992,1713484233561,-157.041908,0.00016638,2]
[322893993,1713484233571,-157.041908,0.00016638,2]
[322893994,1713484233580,-157.041908,0.00016638,2]
[322893995,1713484233589,-157.041908,0.00016638,2]
[322893996,1713484233598,-157.041908,0.00016638,2]
[322893997,1713484233607,-150.041908,0.00016638,2]
[322893998,1713484233616,-157.041908,0.00016639,2]
[322893999,1713484233625,-157.041908,0.00016639,2]
[322894000,1713484233635,-375.80686292,0.00016639,2]
[322894001,1713484233644,-375.80686292,0.0001666,2]
[322894002,1713484233654,-736.37172,0.0001668,2]
[322894003,1713484233664,-375.80686292,0.0001668,2]
[322894004,1713484233673,-154.95,0.00016688,2]
[322894005,1713484233683,-157.041908,0.00016691,2]
[322894006,1713484233692,-157.041908,0.00016692,2]
[322894007,1713484233702,-157.041908,0.00016693,2]
[322894008,1713484233713,-157.041908,0.00016694,2]
[322894009,1713484233723,-192.12009552,0.00016695,2]
[322894010,1713484233732,-157.041908,0.00016695,2]
[322894011,1713484233742,-192.12009551,0.00016696,2]
[322894012,1713484233751,-1243.72553608,0.00016696,2]
[322894013,1713484233760,-171.88727029,0.00016696,2]
[322894014,1713484233770,-1782.54075927,0.00016696,2]
[322894015,1713484233779,-157.041908,0.00016696,2]
[322894016,1713484233788,-232.15012141,0.00016696,2]
[322894017,1713484233797,-263.39097012,0.00016696,2]
[322894018,1713484233806,-500.0,0.00016696,2]
[322894019,1713484233815,-1400.23,0.00016696,2]
[322894020,1713484233824,-1444.67,0.00016696,2]
[322894021,1713484233834,-192.12009551,0.00016697,2]
[322894022,1713484233843,-6545.1193,0.00016697,2]
[322894023,1713484233852,-1000.0,0.00016697,2]
[322894024,1713484233862,-500.0,0.00016697,2]
[322894025,1713484233871,-500.0,0.00016697,2]
[322894026,1713484233881,-500.0,0.00016697,2]
[322894027,1713484233890,-500.0,0.00016697,2]
[322894028,1713484233900,-500.0,0.00016697,2]
[322894029,1713484233910,-500.0,0.00016697,2]
[322894030,1713484233919,-1401.66,0.00016697,2]
[322894031,1713484233929,-1221.33,0.00016697,2]
[322894032,1713484233939,-2402.81,0.00016697,2]
[322894033,1713484233948,-500.0,0.00016697,2]
[322894034,1713484233957,-1002.52,0.00016697,2]
[322894035,1713484233967,-1837.75,0.00016697,2]
[322894036,1713484233977,-665.88,0.00016697,2]
[322894037,1713484233987,-898.01,0.00016697,2]
[322894038,1713484233998,-594.78,0.00016697,2]
[322894039,1713484234008,-1132.62,0.00016697,2]
[322894040,1713484234018,-2000.23,0.00016697,2]
[322894041,1713484234028,-1001.93,0.00016697,2]
[322894042,1713484234037,-796.71,0.00016697,2]
[322894043,1713484234046,-1996.9,0.00016697,2]
[322894044,1713484234056,-500.0,0.00016697,2]
[322894045,1713484234066,-997.77,0.00016697,2]
[322894046,1713484234075,-560.52,0.00016697,2]
[322894047,1713484234084,-500.0,0.00016697,2]
[322894048,1713484234094,-500.0,0.00016697,2]
[322894049,1713484234103,-1143.01,0.00016697,2]
[322894050,1713484234113,-800.49,0.00016697,2]
[322894051,1713484234123,-500.0,0.00016697,2]
[322894052,1713484234133,-618.35,0.00016697,2]
[322894053,1713484234143,-500.0,0.00016697,2]
[322894054,1713484234153,-500.0,0.00016697,2]
[322894055,1713484234164,-500.0,0.00016697,2]
[322894056,1713484234174,-500.0,0.00016697,2]
[322894057,1713484234184,-1460.07,0.00016697,2]
[322894058,1713484234194,-3190.56,0.00016697,2]
[322894059,1713484234203,-1971.01,0.00016697,2]
[322894060,1713484234213,-500.0,0.00016697,2]
[322894061,1713484234223,-529.65234155,0.00016697,2]
[322894062,1713484234233,-1148.38,0.00016697,2]
[322894063,1713484234242,-7737.63,0.00016697,2]
[322894064,1713484234251,-713.49,0.00016697,2]
[322894065,1713484234261,-1197.3,0.00016697,2]
[322894066,1713484234271,-1959.1,0.00016697,2]
[322894067,1713484234280,-5156.72,0.00016697,2]
[322894068,1713484234290,-2123.04,0.00016697,2]
[322894069,1713484234299,-500.0,0.00016697,2]
[322894070,1713484234309,-500.0,0.00016697,2]
[322894071,1713484234319,-880.8,0.00016697,2]
[322894072,1713484234328,-1192.01,0.00016697,2]
[322894073,1713484234338,-7102.93,0.00016697,2]
[322894074,1713484234347,-649.49,0.00016697,2]
[322894075,1713484234356,-500.0,0.00016697,2]
[322894076,1713484234366,-1907.62,0.00016697,2]
[322894077,1713484234375,-862.14,0.00016697,2]
[322894078,1713484234384,-705.58,0.00016697,2]
[322894079,1713484234394,-500.0,0.00016697,2]
[322894080,1713484234403,-500.0,0.00016697,2]
[322894081,1713484234415,-500.0,0.00016697,2]
[322894082,1713484234424,-3583.63,0.00016697,2]
[322894083,1713484234433,-987.88,0.00016697,2]
[322894084,1713484234443,-877.62,0.00016697,2]
[322894085,1713484234452,-1378.82,0.00016697,2]
[322894086,1713484234463,-614.1,0.00016697,2]
[322894087,1713484234473,-1423.77,0.00016697,2]
[322894088,1713484234482,-12867.19,0.00016697,2]
[322894089,1713484234491,-500.0,0.00016697,2]
[322894090,1713484234501,-500.0,0.00016697,2]
[322894091,1713484234510,-800.06,0.00016697,2]
[322894092,1713484234519,-500.0,0.00016697,2]
[322894093,1713484234528,-1415.21,0.00016697,2]
[322894094,1713484234539,-648.1,0.00016697,2]
[322894095,1713484234548,-1341.69,0.00016697,2]
[322894096,1713484234557,-700.31,0.00016697,2]
[322894097,1713484234567,-1903.72,0.00016697,2]
[322894098,1713484234576,-2227.13,0.00016697,2]
[322894099,1713484234585,-2266.42,0.00016697,2]
[322894100,1713484234595,-2266.42,0.00016697,2]
[322894101,1713484234605,-500.0,0.00016697,2]
[322894102,1713484234615,-500.0,0.00016697,2]
[322894103,1713484234625,-500.0,0.00016697,2]
[322894104,1713484234634,-500.0,0.00016697,2]
[322894105,1713484234643,-918.31,0.00016697,2]
[322894106,1713484234653,-9033.45,0.00016697,2]
[322894107,1713484234673,-3612.39,0.00016697,2]
[322894108,1713484234683,-157.041908,0.00016697,2]
[322894109,1713484234693,-154.39974638,0.00016697,2]
[322894110,1713484234709,-345.60025362,0.00016697,2]
[322894111,1713484234719,-500.0,0.00016697,2]
[322894112,1713484234729,-2696.05662667,0.00016697,2]
[322894113,1713484234741,-613.58349975,0.00016697,2]
[322894114,1713484234752,-3444.68987358,0.00016697,2]
[322894115,1713484234761,-37.11012642,0.00016697,2]
[322894124,1713484239159,-656.49,0.00016696,2]
[322894125,1713484239170,-707.09987358,0.00016697,2]
[322894126,1713484239181,-6754.33,0.00016697,2]
[322894127,1713484239191,-7525.36,0.00016697,2]
[322894128,1713484239200,-7525.36,0.00016697,2]
[322894129,1713484239210,-623.09,0.00016697,2]
[322894130,1713484239218,-1259.02,0.00016697,2]
[322894131,1713484239228,-5339.33,0.00016697,2]
[322894132,1713484239237,-500.0,0.00016697,2]
[322894133,1713484239246,-5339.33,0.00016697,2]
[322894134,1713484239255,-937.83,0.00016697,2]
[322894135,1713484239265,-500.0,0.00016697,2]
[322894136,1713484239274,-500.0,0.00016697,2]
[322894137,1713484239283,-500.0,0.00016697,2]
[322894138,1713484239292,-1264.15,0.00016697,2]
[322894139,1713484239302,-500.0,0.00016697,2]
[322894140,1713484239311,-1902.33,0.00016697,2]
[322894141,1713484239320,-500.0,0.00016697,2]
[322894142,1713484239329,-500.0,0.00016697,2]
[322894143,1713484239338,-500.0,0.00016697,2]
[322894144,1713484239347,-500.0,0.00016697,2]
[322894145,1713484239356,-500.0,0.00016697,2]
[322894146,1713484239365,-909.55,0.00016697,2]
[322894147,1713484239374,-500.0,0.00016697,2]
[322894148,1713484239383,-500.0,0.00016697,2]
[322894149,1713484239392,-500.0,0.00016697,2]
[322894150,1713484239401,-500.0,0.00016697,2]
[322894151,1713484239412,-5312.44,0.00016697,2]
[322894152,1713484239421,-1747.53,0.00016697,2]
[322894153,1713484239430,-1747.53,0.00016697,2]
[322894154,1713484239440,-1599.78,0.00016697,2]
[322894155,1713484239449,-1588.51,0.00016697,2]
[322894156,1713484239459,-1837.88,0.00016697,2]
[322894157,1713484239470,-1837.88,0.00016697,2]
[322894158,1713484239479,-1120.52,0.00016697,2]
[322894159,1713484239489,-500.0,0.00016697,2]
[322894160,1713484239498,-500.0,0.00016697,2]
[322894161,1713484239508,-1205.03,0.00016697,2]
[322894162,1713484239517,-531.51,0.00016697,2]
[322894163,1713484239526,-2080.96,0.00016697,2]
[322894164,1713484239536,-531.51,0.00016697,2]
[322894165,1713484239545,-500.0,0.00016697,2]
[322894166,1713484239554,-603.85,0.00016697,2]
[322894167,1713484239563,-500.0,0.00016697,2]
[322894168,1713484239572,-790.95,0.00016697,2]
[322894169,1713484239582,-500.0,0.00016697,2]
[322894170,1713484239591,-500.0,0.00016697,2]
[322894171,1713484239600,-700.24,0.00016697,2]
[322894172,1713484239609,-1616.24,0.00016697,2]
[322894173,1713484239619,-995.96,0.00016697,2]
[322894174,1713484239628,-1077.09,0.00016697,2]
[322894175,1713484239637,-500.0,0.00016697,2]
[322894176,1713484239646,-580.21,0.00016697,2]
[322894177,1713484239656,-500.0,0.00016697,2]
[322894178,1713484239666,-3533.4,0.00016697,2]
[322894179,1713484239675,-500.0,0.00016697,2]
[322894180,1713484239684,-500.0,0.00016697,2]
[322894181,1713484239694,-1790.97,0.00016697,2]
[322894182,1713484239702,-1063.07,0.00016697,2]
[322894183,1713484239712,-188.2519888,0.00016697,2]
[322894184,1713484239721,-12350.39,0.00016697,2]
[322894185,1713484239730,-2595.35,0.00016697,2]
[322894186,1713484239739,-3508.3,0.00016697,2]
[322894187,1713484239748,-3508.3,0.00016697,2]
[322894188,1713484239757,-9167.18,0.00016697,2]
[322894189,1713484239766,-500.0,0.00016697,2]
[322894190,1713484239775,-4453.24,0.00016697,2]
[322894191,1713484239785,-500.0,0.00016697,2]
[322894192,1713484239795,-1056.17,0.00016697,2]
[322894193,1713484239804,-4453.24,0.00016697,2]
[322894194,1713484239813,-500.0,0.00016697,2]
[322894195,1713484239823,-1400.23,0.00016697,2]
[322894196,1713484239832,-2670.56,0.00016697,2]
[322894197,1713484239841,-2670.56,0.00016697,2]
[322894198,1713484239850,-1400.23,0.00016697,2]
[322894199,1713484239860,-1400.23,0.00016697,2]
[322894200,1713484239869,-4378.39,0.00016697,2]
[322894201,1713484239878,-500.0,0.00016697,2]
[322894202,1713484239888,-1545.34,0.00016697,2]
[322894203,1713484239897,-500.0,0.00016697,2]
[322894204,1713484239906,-1444.67,0.00016697,2]
[322894205,1713484239917,-1444.67,0.00016697,2]
[322894206,1713484239926,-683.7,0.00016697,2]
[322894207,1713484239936,-1444.67,0.00016697,2]
[322894208,1713484239945,-500.0,0.00016697,2]
[322894209,1713484239955,-656.49,0.00016697,2]
[322894210,1713484239964,-596.05464535,0.00016697,2]
[322894211,1713484239973,-656.49,0.00016697,2]
[322894212,1713484239983,-656.49,0.00016697,2]
[322894213,1713484239992,-500.0,0.00016697,2]
[322894214,1713484240001,-500.0,0.00016697,2]
[322894215,1713484240011,-192.12009551,0.00016697,2]
[322894216,1713484240020,-1231.98002411,0.00016698,2]
[322894217,1713484240029,-500.0,0.00016698,2]
[322894218,1713484240039,-500.0,0.00016698,2]
[322894219,1713484240048,-500.0,0.00016698,2]
[322894220,1713484240057,-500.0,0.00016698,2]
[322894221,1713484240067,-2453.8,0.00016698,2]
[322894222,1713484240077,-3047.05,0.00016698,2]
[322894223,1713484240086,-500.0,0.00016698,2]
[322894224,1713484240096,-500.0,0.00016698,2]
[322894225,1713484240105,-2121.87,0.00016698,2]
[322894226,1713484240115,-500.0,0.00016698,2]
[322894227,1713484240125,-1125.39,0.00016698,2]
[322894228,1713484240135,-500.0,0.00016698,2]
[322894229,1713484240144,-3463.25,0.00016698,2]
[322894230,1713484240154,-532.84790458,0.00016698,2]
[322894231,1713484240164,-500.0,0.00016698,2]
[322894232,1713484240174,-3650.98,0.00016698,2]
[322894233,1713484240183,-500.0,0.00016698,2]
[322894234,1713484240192,-500.0,0.00016698,2]
[322894235,1713484240202,-1872.93,0.00016698,2]
[322894236,1713484240211,-2760.34,0.00016698,2]
[322894237,1713484240220,-500.0,0.00016698,2]
[322894238,1713484240230,-500.0,0.00016698,2]
[322894239,1713484240242,-500.0,0.00016698,2]
[322894240,1713484240252,-500.0,0.00016698,2]
[322894241,1713484240261,-3492.19,0.00016698,2]
[322894242,1713484240270,-500.0,0.00016698,2]
[322894243,1713484240279,-947.49,0.00016698,2]
[322894244,1713484240288,-500.0,0.00016698,2]
[322894245,1713484240297,-500.0,0.00016698,2]
[322894246,1713484240308,-1283.11,0.00016698,2]
[322894247,1713484240318,-500.0,0.00016698,2]
[322894248,1713484240327,-500.0,0.00016698,2]
[322894249,1713484240337,-1842.55,0.00016698,2]
[322894250,1713484240347,-500.0,0.00016698,2]
[322894251,1713484240356,-500.0,0.00016698,2]
[322894252,1713484240365,-956.84,0.00016698,2]
[322894253,1713484240375,-500.0,0.00016698,2]
[322894254,1713484240386,-538.66,0.00016698,2]
[322894255,1713484240397,-500.0,0.00016698,2]
[322894256,1713484240407,-1074.51,0.00016698,2]
[322894257,1713484240417,-500.0,0.00016698,2]
[322894258,1713484240428,-500.0,0.00016698,2]
[322894259,1713484240438,-500.0,0.00016698,2]
[322894260,1713484240449,-245.58621875,0.00016698,2]
[322894261,1713484240459,-3376.55,0.00016698,2]
[322894262,1713484240471,-500.0,0.00016698,2]
[322894263,1713484240480,-699.93,0.00016698,2]
[322894264,1713484240490,-500.0,0.00016698,2]
[322894265,1713484240499,-500.0,0.00016698,2]
[322894266,1713484240508,-500.0,0.00016698,2]
[322894267,1713484240518,-1782.99,0.00016698,2]
[322894268,1713484240528,-787.83,0.00016698,2]
[322894269,1713484240540,-500.0,0.00016698,2]
[322894270,1713484240550,-557.83029556,0.00016698,2]
[322894271,1713484240559,-500.0,0.00016698,2]
[322894272,1713484240568,-500.0,0.00016698,2]
[322894273,1713484240577,-327.51662766,0.00016698,2]
[322894274,1713484240586,-816.38,0.00016698,2]
[322894275,1713484240595,-500.0,0.00016698,2]
[322894276,1713484240604,-592.64,0.00016698,2]
[322894277,1713484240614,-500.0,0.00016698,2]
[322894278,1713484240623,-500.0,0.00016698,2]
[322894279,1713484240632,-3931.02,0.00016698,2]
[322894280,1713484240641,-500.0,0.00016698,2]
[322894281,1713484240650,-1660.74,0.00016698,2]
[322894282,1713484240660,-500.0,0.00016698,2]
[322894283,1713484240670,-500.0,0.00016698,2]
[322894284,1713484240679,-500.0,0.00016698,2]
[322894285,1713484240688,-1205.47,0.00016698,2]
[322894286,1713484240697,-570.2600231,0.00016698,2]
[322894287,1713484240706,-334.76,0.00016698,2]
[322894288,1713484240716,-183.17471436,0.00016698,2]
[322894289,1713484240725,-668.52,0.00016698,2]
[322894290,1713484240734,-500.0,0.00016698,2]
[322894291,1713484240743,-500.0,0.00016698,2]
[322894292,1713484240752,-500.0,0.00016698,2]
[322894293,1713484240761,-3036.47,0.00016698,2]
[322894294,1713484240771,-500.0,0.00016698,2]
[322894295,1713484240782,-500.0,0.00016698,2]
[322894296,1713484240791,-500.0,0.00016698,2]
[322894297,1713484240801,-3079.97,0.00016698,2]
[322894298,1713484240811,-500.0,0.00016698,2]
[322894299,1713484240821,-1280.76,0.00016698,2]
[322894300,1713484240831,-500.0,0.00016698,2]
[322894301,1713484240841,-1079.17,0.00016698,2]
[322894302,1713484240850,-545.10702695,0.00016698,2]
[322894303,1713484240859,-618.28,0.00016698,2]
[322894304,1713484240869,-500.0,0.00016698,2]
[322894305,1713484240878,-4024.16,0.00016698,2]
[322894306,1713484240887,-500.0,0.00016698,2]
[322894307,1713484240897,-500.0,0.00016698,2]
[322894308,1713484240906,-500.0,0.00016698,2]
[322894309,1713484240917,-2302.1,0.00016698,2]
[322894310,1713484240926,-500.0,0.00016698,2]
[322894311,1713484240936,-1705.29,0.00016698,2]
[322894312,1713484240945,-500.0,0.00016698,2]
[322894313,1713484240955,-500.0,0.00016698,2]
[322894314,1713484240964,-500.0,0.00016698,2]
[322894315,1713484240974,-500.0,0.00016698,2]
[322894316,1713484240983,-500.0,0.00016698,2]
[322894317,1713484240993,-835.33,0.00016698,2]
[322894318,1713484241002,-500.0,0.00016698,2]
[322894319,1713484241011,-3352.78,0.00016698,2]
[322894320,1713484241020,-500.0,0.00016698,2]
[322894321,1713484241029,-2610.18,0.00016698,2]
[322894322,1713484241038,-500.0,0.00016698,2]
[322894323,1713484241047,-500.0,0.00016698,2]
[322894324,1713484241056,-500.0,0.00016698,2]
[322894325,1713484241066,-1590.71,0.00016698,2]
[322894326,1713484241075,-1164.4,0.00016698,2]
[322894327,1713484241084,-500.0,0.00016698,2]
[322894328,1713484241093,-500.0,0.00016698,2]
[322894329,1713484241102,-500.0,0.00016698,2]
[322894330,1713484241112,-500.0,0.00016698,2]
[322894331,1713484241121,-500.0,0.00016698,2]
[322894332,1713484241130,-1071.39,0.00016698,2]
[322894333,1713484241139,-500.0,0.00016698,2]
[322894334,1713484241148,-500.0,0.00016698,2]
[322894335,1713484241157,-560.15130142,0.00016698,2]
[322894336,1713484241169,-500.0,0.00016698,2]
[322894337,1713484241178,-500.0,0.00016698,2]
[322894338,1713484241187,-500.0,0.00016698,2]
[322894339,1713484241197,-500.0,0.00016698,2]
[322894340,1713484241206,-1637.1,0.00016698,2]
[322894341,1713484241215,-762.84,0.00016698,2]
[322894342,1713484241224,-1401.66,0.00016698,2]
[322894343,1713484241233,-1221.33,0.00016698,2]
[322894344,1713484241242,-500.0,0.00016698,2]
[322894345,1713484241252,-2402.81,0.00016698,2]
[322894346,1713484241262,-500.0,0.00016698,2]
[322894347,1713484241271,-2941.65,0.00016698,2]
[322894348,1713484241280,-1002.52,0.00016698,2]
[322894349,1713484241289,-1837.75,0.00016698,2]
[322894350,1713484241298,-500.0,0.00016698,2]
[322894351,1713484241307,-634.27,0.00016698,2]
[322894352,1713484241316,-665.88,0.00016698,2]
[322894353,1713484241325,-1931.51,0.00016698,2]
[322894354,1713484241334,-500.0,0.00016698,2]
[322894355,1713484241343,-898.01,0.00016698,2]
[322894356,1713484241353,-594.78,0.00016698,2]
[322894357,1713484241362,-1132.62,0.00016698,2]
[322894358,1713484241371,-697.77,0.00016698,2]
[322894359,1713484241380,-500.0,0.00016698,2]
[322894360,1713484241389,-500.0,0.00016698,2]
[322894361,1713484241398,-500.0,0.00016698,2]
[322894362,1713484241407,-2000.23,0.00016698,2]
[322894363,1713484241422,-1001.93,0.00016698,2]
[322894364,1713484241432,-796.71,0.00016698,2]
[322894365,1713484241441,-461.4,0.00016698,2]
[322894366,1713484241449,-1996.9,0.00016698,2]
[322894367,1713484241459,-500.0,0.00016698,2]
[322894368,1713484241469,-500.0,0.00016698,2]
[322894369,1713484241478,-2418.7,0.00016698,2]
[322894370,1713484241487,-192.12009551,0.00016698,2]
[322894371,1713484241496,-500.0,0.00016698,2]
[322894372,1713484241506,-2511.98,0.00016698,2]
[322894373,1713484241515,-997.77,0.00016698,2]
[322894374,1713484241525,-9331.94,0.00016698,2]
[322894375,1713484241534,-560.52,0.00016698,2]
[322894376,1713484241544,-500.0,0.00016698,2]
[322894377,1713484241554,-500.0,0.00016698,2]
[322894378,1713484241563,-500.0,0.00016698,2]
[322894379,1713484241572,-500.0,0.00016698,2]
[322894380,1713484241581,-500.0,0.00016698,2]
[322894381,1713484241590,-1143.01,0.00016698,2]
[322894382,1713484241599,-800.49,0.00016698,2]
[322894383,1713484241608,-500.0,0.00016698,2]
[322894384,1713484241617,-500.0,0.00016698,2]
[322894385,1713484241627,-500.0,0.00016698,2]
[322894386,1713484241636,-500.0,0.00016698,2]
[322894387,1713484241645,-618.35,0.00016698,2]
[322894388,1713484241654,-500.0,0.00016698,2]
[322894389,1713484241665,-500.0,0.00016698,2]
[322894390,1713484241675,-77164.39,0.00016698,2]
[322894391,1713484241685,-500.0,0.00016698,2]
[322894392,1713484241694,-1162.66,0.00016698,2]
[322894393,1713484241703,-4078.6,0.00016698,2]
[322894394,1713484241712,-500.0,0.00016698,2]
[322894395,1713484241721,-503.7244511,0.00016698,2]
[322894396,1713484241730,-1460.07,0.00016698,2]
[322894397,1713484241740,-3190.56,0.00016698,2]
[322894398,1713484241748,-1971.01,0.00016698,2]
[322894399,1713484241758,-500.0,0.00016698,2]
[322894400,1713484241767,-500.0,0.00016698,2]
[322894401,1713484241776,-3230.67,0.00016698,2]
[322894402,1713484241785,-500.0,0.00016698,2]
[322894403,1713484241795,-500.0,0.00016698,2]
[322894404,1713484241806,-1148.38,0.00016698,2]
[322894405,1713484241815,-2117.71,0.00016698,2]
[322894406,1713484241825,-7737.63,0.00016698,2]
[322894407,1713484241834,-713.49,0.00016698,2]
[322894408,1713484241843,-500.0,0.00016698,2]
[322894409,1713484241855,-2531.21,0.00016698,2]
[322894410,1713484241866,-500.0,0.00016698,2]
[322894411,1713484241875,-1197.3,0.00016698,2]
[322894412,1713484241884,-1959.1,0.00016698,2]
[322894413,1713484241893,-500.0,0.00016698,2]
[322894414,1713484241902,-5156.72,0.00016698,2]
[322894415,1713484241913,-500.0,0.00016698,2]
[322894416,1713484241922,-4556.16,0.00016698,2]
[322894417,1713484241932,-7068.16,0.00016698,2]
[322894418,1713484241941,-1195.8,0.00016698,2]
[322894419,1713484241950,-500.0,0.00016698,2]
[322894420,1713484241960,-2123.04,0.00016698,2]
[322894421,1713484241969,-500.0,0.00016698,2]
[322894422,1713484241979,-1281.08,0.00016698,2]
[322894423,1713484241988,-500.0,0.00016698,2]
[322894424,1713484241997,-500.0,0.00016698,2]
[322894425,1713484242007,-880.8,0.00016698,2]
[322894426,1713484242016,-1192.01,0.00016698,2]
[322894427,1713484242026,-708.88,0.00016698,2]
[322894428,1713484242036,-500.0,0.00016698,2]
[322894429,1713484242045,-3179.65,0.00016698,2]
[322894430,1713484242054,-7237.66,0.00016698,2]
[322894431,1713484242064,-7102.93,0.00016698,2]
[322894432,1713484242074,-649.49,0.00016698,2]
[322894433,1713484242082,-500.0,0.00016698,2]
[322894434,1713484242091,-500.0,0.00016698,2]
[322894435,1713484242101,-1907.62,0.00016698,2]
[322894436,1713484242110,-862.14,0.00016698,2]
[322894437,1713484242121,-500.0,0.00016698,2]
[322894438,1713484242130,-705.58,0.00016698,2]
[322894439,1713484242139,-500.0,0.00016698,2]
[322894440,1713484242149,-500.0,0.00016698,2]
[322894441,1713484242158,-4072.76,0.00016698,2]
[322894442,1713484242170,-1528.8,0.00016698,2]
[322894443,1713484242179,-500.0,0.00016698,2]
[322894444,1713484242188,-516.2461441,0.00016698,2]
[322894445,1713484242197,-500.0,0.00016698,2]
[322894446,1713484242206,-5229.68,0.00016698,2]
[322894447,1713484242216,-3583.63,0.00016698,2]
[322894448,1713484242225,-500.0,0.00016698,2]
[322894449,1713484242235,-557.1,0.00016698,2]
[322894450,1713484242245,-987.88,0.00016698,2]
[322894451,1713484242254,-1518.83,0.00016698,2]
[322894452,1713484242263,-877.62,0.00016698,2]
[322894453,1713484242273,-500.0,0.00016698,2]
[322894454,1713484242282,-1378.82,0.00016698,2]
[322894455,1713484242291,-614.1,0.00016698,2]
[322894456,1713484242300,-500.0,0.00016698,2]
[322894457,1713484242310,-3218.76,0.00016698,2]
[322894458,1713484242320,-1423.77,0.00016698,2]
[322894459,1713484242330,-500.0,0.00016698,2]
[322894460,1713484242339,-12867.19,0.00016698,2]
[322894461,1713484242349,-5814.37,0.00016698,2]
[322894462,1713484242359,-500.0,0.00016698,2]
[322894463,1713484242368,-500.0,0.00016698,2]
[322894464,1713484242377,-500.0,0.00016698,2]
[322894465,1713484242387,-800.06,0.00016698,2]
[322894466,1713484242396,-500.0,0.00016698,2]
[322894467,1713484242406,-500.0,0.00016698,2]
[322894468,1713484242417,-1108.7,0.00016698,2]
[322894469,1713484242426,-500.0,0.00016698,2]
[322894470,1713484242435,-500.0,0.00016698,2]
[322894471,1713484242445,-1415.21,0.00016698,2]
[322894472,1713484242456,-648.1,0.00016698,2]
[322894473,1713484242472,-3657.38,0.00016698,2]
[322894474,1713484242491,-1341.69,0.00016698,2]
[322894475,1713484242501,-501.64,0.00016698,2]
[322894476,1713484242511,-700.31,0.00016698,2]
[322894477,1713484242522,-30856.77,0.00016698,2]
[322894478,1713484242534,-500.0,0.00016698,2]
[322894479,1713484242544,-1903.72,0.00016698,2]
[322894480,1713484242554,-2227.13,0.00016698,2]
[322894481,1713484242563,-500.0,0.00016698,2]
[322894482,1713484242572,-2266.42,0.00016698,2]
[322894483,1713484242581,-2574.35,0.00016698,2]
[322894484,1713484242590,-1620.74,0.00016698,2]
[322894485,1713484242600,-500.0,0.00016698,2]
[322894486,1713484242609,-500.0,0.00016698,2]
[322894487,1713484242619,-500.0,0.00016698,2]
[322894488,1713484242628,-500.0,0.00016698,2]
[322894489,1713484242638,-918.31,0.00016698,2]
[322894490,1713484242647,-9033.45,0.00016698,2]
[322894491,1713484242657,-3612.39,0.00016698,2]
[322894492,1713484242669,-6834.99,0.00016698,2]
[322894493,1713484242678,-500.0,0.00016698,2]
[322894494,1713484242687,-500.0,0.00016698,2]